[Event "RUS-chT Men Rapid 2019"]
[Site "Sochi"]
[Date "2019.10.19"]
[Round "9.26"]
[White "Gurvich, Vitaly"]
[Black "Vakhlamov, Igor L."]
[Result "1/2-1/2"]
[ECO "D30"]
[WhiteElo "2278"]
[BlackElo "2413"]
[Annotator "NA"]
[PlyCount "64"]
[EventDate "2019.10.18"]
[EventType "swiss"]
[EventCountry "RUS"]
[SourceTitle "playchess.com"]
[Source "ChessBase"]
[SourceQuality "1"]
[TimeControl "900+10"]

1. d4 {[%emt 0:00:00]} Nf6 {[%emt 0:00:00]} 2. c4 {[%emt 0:00:00]} e6 {[%emt 0:00:00]} 3. Nf3 {[%emt 0:00:00]} d5 {[%emt 0:00:00]} 4. Bg5 {[%emt 0:00:00]} Nbd7 {[%emt 0:00:09]} 5. e3 {[%emt 0:00:44]} h6 {[%emt 0:00:01]} 6. Bxf6 Nxf6 {[%emt 0:00:02]} 7. Nbd2 {[%emt 0:00:32]} Be7 {[%emt 0:00:40]} 8. Bd3 {[%emt 0:00:02]} O-O {[%emt 0:00:02]} 9. O-O {[%emt 0:00:03]} c5 {[%emt 0:00:16]} 10. dxc5 {[%emt 0:00:27]} dxc4 {[%emt 0:00:20]} 11. Nxc4 {[%emt 0:00:21]} Bxc5 {[%emt 0:00:04]} 12. a3 {[%emt 0:00:01]} b6 {[%emt 0:02:13]} 13. Qe2 {[%emt 0:00:12]} Bb7 {[%emt 0:00:27]} 14. Rfd1 {[%emt 0:00:05]} Qb8 {[%emt 0:00:28]} 15. h3 {[%emt 0:00:33]} Rd8 {[%emt 0:00:23]} 16. Rac1 {[%emt 0:00:15]} Bd5 {[%emt 0:03:50]} 17. Nce5 {[%emt 0:00:53]} a5 {[%emt 0:00:05]} 18. Bc4 {[%emt 0:00:16]} Bb7 {[%emt 0:01:28]} 19. Bb5 {[%emt 0:00:46]} Rxd1+ {[%emt 0:00:27]} 20. Rxd1 {[%emt 0:01:23]} Qc7 {[%emt 0:00:31]} 21. Nd7 {[%emt 0:00:23]} Rd8 {[%emt 0:00:40]} 22. Nxf6+ {[%emt 0:00:02]} gxf6 {[%emt 0:00:01]} 23. Rxd8+ {[%emt 0:06:04]} Qxd8 {[%emt 0:00:01]} 24. Qd3 {[%emt 0:00:14]} Qxd3 {[%emt 0:00:16]} 25. Bxd3 {[%emt 0:00:01]} Kg7 {[%emt 0:00:18]} 26. e4 {[%emt 0:00:39]} Bc6 {[%emt 0:00:41]} 27. Kf1 {[%emt 0:00:22]} Kf8 {[%emt 0:00:47]} 28. Ke2 {[%emt 0:00:05]} b5 {[%emt 0:00:26]} 29. b4 {[%emt 0:00:20]} axb4 {[%emt 0:00:09]} 30. axb4 {[%emt 0:00:01]} Bxb4 {[%emt 0:00:33]} 31. Nd4 {[%emt 0:00:01]} Bb7 {[%emt 0:00:21]} 32. Nxb5 {[%emt 0:00:02]} Bc5 {[%emt 0:00:23]} 1/2-1/2

[Event "RUS-chT Men Rapid 2019"]
[Site "Sochi"]
[Date "2019.10.19"]
[Round "9.27"]
[White "Tsoi, Dmitry"]
[Black "Chizhikov, Vladislav"]
[Result "1-0"]
[ECO "A02"]
[WhiteElo "2329"]
[BlackElo "2273"]
[Annotator "NA"]
[PlyCount "157"]
[EventDate "2019.10.18"]
[EventType "swiss"]
[EventCountry "RUS"]
[SourceTitle "playchess.com"]
[Source "ChessBase"]
[SourceQuality "1"]
[TimeControl "900+10"]

1. f4 {[%emt 0:00:00]} f5 {[%emt 0:00:00]} 2. Nf3 {[%emt 0:00:00]} Nf6 {[%emt 0:00:02]} 3. e3 {[%emt 0:00:04]} b6 {[%emt 0:00:18]} 4. b4 {[%emt 0:00:03]} e6 {[%emt 0:00:06]} 5. a3 {[%emt 0:00:01]} Bb7 {[%emt 0:00:02]} 6. Bb2 {[%emt 0:00:01]} Be7 {[%emt 0:00:16]} 7. Be2 {[%emt 0:00:02]} O-O {[%emt 0:00:03]} 8. O-O {[%emt 0:00:03]} c5 {[%emt 0:00:26]} 9. Nc3 {[%emt 0:00:21]} cxb4 {[%emt 0:00:32]} 10. axb4 {[%emt 0:00:01]} Bxb4 {[%emt 0:00:10]} 11. Ra4 {[%emt 0:00:01]} a5 {[%emt 0:00:12]} 12. Nb5 {[%emt 0:00:10]} Na6 {[%emt 0:00:27]} 13. Ba3 {[%emt 0:02:12]} Nc5 {[%emt 0:01:18]} 14. Bxb4 {[%emt 0:00:03]} Nxa4 {[%emt 0:00:01]} 15. Bxf8 {[%emt 0:00:02]} Qxf8 {[%emt 0:00:02]} 16. Qa1 {[%emt 0:00:01]} Nc5 {[%emt 0:00:08]} 17. Rb1 {[%emt 0:00:01]} Ba6 {[%emt 0:00:23]} 18. c4 {[%emt 0:00:07]} Bxb5 {[%emt 0:00:28]} 19. Rxb5 {[%emt 0:00:02]} Qd6 {[%emt 0:00:04]} 20. Qa3 {[%emt 0:00:42]} a4 {[%emt 0:00:18]} 21. Nd4 {[%emt 0:00:27]} Qc7 {[%emt 0:00:32]} 22. Bf3 {[%emt 0:00:46]} Ra6 {[%emt 0:00:03]} 23. Rb4 {[%emt 0:00:11]} Qd6 {[%emt 0:01:30]} 24. Rb2 {[%emt 0:00:17]} Ne8 {[%emt 0:01:36]} 25. d3 {[%emt 0:00:29]} Nc7 {[%emt 0:00:07]} 26. h3 {[%emt 0:00:25]} g6 {[%emt 0:01:37]} 27. g3 Kf7 {[%emt 0:00:11]} 28. Kf1 {[%emt 0:01:00]} e5 {[%emt 0:01:03]} 29. fxe5 {[%emt 0:00:37]} Qxe5 {[%emt 0:00:08]} 30. Kf2 {[%emt 0:00:02]} Qe7 {[%emt 0:00:36]} 31. Ra2 {[%emt 0:00:10]} h5 {[%emt 0:01:12]} 32. h4 {[%emt 0:00:09]} Qf6 {[%emt 0:00:18]} 33. Ne2 {[%emt 0:00:33]} N7e6 {[%emt 0:00:18]} 34. Kg2 {[%emt 0:00:47]} Kg7 {[%emt 0:00:14]} 35. Nc3 {[%emt 0:00:53]} Nxd3 {[%emt 0:02:09]} 36. Nd5 {[%emt 0:00:05]} Ne1+ {[%emt 0:00:04]} 37. Kf2 {[%emt 0:00:17]} Qe5 {[%emt 0:00:02]} 38. Kxe1 {[%emt 0:00:02]} Qxg3+ {[%emt 0:00:01]} 39. Rf2 {[%emt 0:00:01]} d6 {[%emt 0:00:35]} 40. Qc3+ {[%emt 0:00:58]} Qe5 {[%emt 0:00:03]} 41. Ra2 {[%emt 0:00:02]} Nc5 {[%emt 0:00:09]} 42. Qxe5+ {[%emt 0:00:17]} dxe5 {[%emt 0:00:02]} 43. Nb4 {[%emt 0:00:02]} Ra7 {[%emt 0:00:59]} 44. Nc6 {[%emt 0:00:02]} Rc7 {[%emt 0:00:16]} 45. Nb4 {[%emt 0:00:50]} Rd7 {[%emt 0:01:47]} 46. Bc6 {[%emt 0:00:11]} Ra7 {[%emt 0:00:31]} 47. Ra3 {[%emt 0:00:02]} g5 {[%emt 0:00:04]} 48. hxg5 {[%emt 0:00:18]} Kg6 {[%emt 0:00:03]} 49. Ke2 {[%emt 0:00:52]} e4 {[%emt 0:00:21]} 50. Ra1 {[%emt 0:00:21]} a3 {[%emt 0:00:39]} 51. Be8+ {[%emt 0:02:06]} Kxg5 {[%emt 0:00:21]} 52. Rg1+ {[%emt 0:00:01]} Kh4 {[%emt 0:00:07]} 53. Na2 {[%emt 0:00:42]} Rc7 {[%emt 0:00:31]} 54. Rh1+ {[%emt 0:00:05]} Kg3 {[%emt 0:00:15]} 55. Rxh5 {[%emt 0:00:07]} Nd3 {[%emt 0:00:02]} 56. Rg5+ {[%emt 0:00:47]} Kh4 {[%emt 0:00:02]} 57. Rxf5 {[%emt 0:00:02]} Rxc4 {[%emt 0:00:04]} 58. Kd2 {[%emt 0:00:07]} Kg3 {[%emt 0:00:08]} 59. Rg5+ {[%emt 0:01:07]} Kf2 {[%emt 0:00:05]} 60. Rf5+ {[%emt 0:00:00]} Kg3 {[%emt 0:00:01]} 61. Bf7 {[%emt 0:00:15]} Rc8 {[%emt 0:00:21]} 62. Nc3 {[%emt 0:00:34]} Nc5 {[%emt 0:00:01]} 63. Rg5+ {[%emt 0:01:16]} Kh4 {[%emt 0:00:02]} 64. Rg8 {[%emt 0:00:09]} Rc7 {[%emt 0:00:10]} 65. Ba2 {[%emt 0:00:42]} b5 {[%emt 0:00:09]} 66. Nxb5 {[%emt 0:00:50]} Rb7 {[%emt 0:00:01]} 67. Bc4 {[%emt 0:00:09]} Na4 {[%emt 0:00:18]} 68. Nxa3 {[%emt 0:00:22]} Rb4 {[%emt 0:00:51]} 69. Be2 {[%emt 0:00:22]} Nc5 {[%emt 0:00:15]} 70. Nc2 {[%emt 0:00:10]} Ra4 {[%emt 0:00:15]} 71. Rg4+ {[%emt 0:00:04]} Kh3 {[%emt 0:00:01]} 72. Rg5 {[%emt 0:00:01]} Nb3+ {[%emt 0:00:05]} 73. Kc3 {[%emt 0:00:03]} Nc1 {[%emt 0:00:05]} 74. Bc4 {[%emt 0:00:09]} Kh2 {[%emt 0:00:15]} 75. Rd5 {[%emt 0:00:45]} Kg3 {[%emt 0:00:14]} 76. Rd1 {[%emt 0:00:03]} Nd3 {[%emt 0:00:20]} 77. Bxd3 {[%emt 0:00:04]} exd3 {[%emt 0:00:01]} 78. Kxd3 {[%emt 0:00:06]} Ra8 {[%emt 0:00:05]} 79. Rf1 {[%emt 0:00:03]} 1-0

[Event "RUS-chT Men Rapid 2019"]
[Site "Sochi"]
[Date "2019.10.19"]
[Round "9.28"]
[White "Girshgorn, Leonid"]
[Black "Frolov, Aleksey G."]
[Result "1-0"]
[ECO "A05"]
[WhiteElo "2183"]
[BlackElo "2093"]
[Annotator "NA"]
[PlyCount "149"]
[EventDate "2019.10.18"]
[EventType "swiss"]
[EventCountry "RUS"]
[SourceTitle "playchess.com"]
[Source "ChessBase"]
[SourceQuality "1"]
[TimeControl "900+10"]

1. Nf3 {[%emt 0:00:00]} Nf6 {[%emt 0:00:00]} 2. g3 {[%emt 0:00:00]} g6 {[%emt 0:00:00]} 3. Bg2 {[%emt 0:00:00]} d5 {[%emt 0:00:00]} 4. O-O {[%emt 0:00:00]} Bg7 {[%emt 0:00:00]} 5. d3 {[%emt 0:00:05]} O-O {[%emt 0:00:00]} 6. Nbd2 {[%emt 0:00:01]} c5 {[%emt 0:00:01]} 7. e4 {[%emt 0:00:02]} Nc6 {[%emt 0:00:03]} 8. Re1 {[%emt 0:00:01]} e5 {[%emt 0:00:04]} 9. exd5 {[%emt 0:00:08]} Nxd5 {[%emt 0:00:02]} 10. Nc4 {[%emt 0:00:15]} Re8 {[%emt 0:00:04]} 11. a4 {[%emt 0:00:09]} Ndb4 {[%emt 0:00:58]} 12. Ng5 {[%emt 0:01:24]} Be6 {[%emt 0:03:37]} 13. Nxe6 {[%emt 0:00:33]} Rxe6 {[%emt 0:00:02]} 14. Be3 {[%emt 0:00:43]} Nd4 {[%emt 0:01:23]} 15. c3 {[%emt 0:01:41]} Nxd3 {[%emt 0:00:55]} 16. Rf1 {[%emt 0:03:57]} e4 {[%emt 0:05:51]} 17. cxd4 {[%emt 0:00:37]} cxd4 {[%emt 0:00:04]} 18. Bf4 {[%emt 0:01:41]} Rc8 {[%emt 0:00:54]} 19. b3 {[%emt 0:01:02]} Nxf4 {[%emt 0:00:14]} 20. gxf4 {[%emt 0:00:01]} Qh4 {[%emt 0:00:19]} 21. Bxe4 {[%emt 0:02:39]} Rxc4 {[%emt 0:00:52]} 22. bxc4 {[%emt 0:00:43]} Rxe4 {[%emt 0:00:02]} 23. Qd3 {[%emt 0:00:21]} Rxf4 {[%emt 0:00:29]} 24. Rae1 {[%emt 0:00:32]} h6 {[%emt 0:00:28]} 25. h3 {[%emt 0:01:09]} Qh5 {[%emt 0:00:19]} 26. Kg2 {[%emt 0:00:21]} Rf5 {[%emt 0:00:17]} 27. Re4 {[%emt 0:00:21]} Qg5+ {[%emt 0:00:43]} 28. Rg4 {[%emt 0:00:07]} Qf6 {[%emt 0:00:06]} 29. Qe4 {[%emt 0:00:21]} b6 {[%emt 0:00:44]} 30. Rg3 {[%emt 0:00:30]} Rf4 {[%emt 0:00:05]} 31. Qa8+ {[%emt 0:00:02]} Kh7 {[%emt 0:00:01]} 32. Rf3 {[%emt 0:00:37]} Qg5+ {[%emt 0:00:19]} 33. Kh1 {[%emt 0:00:08]} Qf5 {[%emt 0:00:36]} 34. Kg2 {[%emt 0:00:17]} Qg5+ {[%emt 0:00:11]} 35. Rg3 {[%emt 0:00:08]} Qc5 {[%emt 0:00:17]} 36. Qd5 {[%emt 0:00:01]} Qxd5+ {[%emt 0:00:21]} 37. cxd5 {[%emt 0:00:01]} Rf5 {[%emt 0:00:01]} 38. Rf3 {[%emt 0:00:00]} Rg5+ {[%emt 0:00:07]} 39. Kh2 {[%emt 0:00:09]} Kg8 {[%emt 0:00:03]} 40. Rc1 {[%emt 0:00:12]} Rxd5 {[%emt 0:00:14]} 41. Rc8+ {[%emt 0:00:01]} Bf8 {[%emt 0:00:00]} 42. Rc2 {[%emt 0:00:19]} Bb4 {[%emt 0:00:11]} 43. Rc8+ {[%emt 0:00:04]} Kg7 {[%emt 0:00:01]} 44. Rd3 {[%emt 0:00:12]} Bc5 {[%emt 0:00:02]} 45. Kg2 {[%emt 0:00:01]} Re5 {[%emt 0:00:04]} 46. Kf3 {[%emt 0:00:03]} Re1 {[%emt 0:00:10]} 47. a5 {[%emt 0:00:02]} Rh1 {[%emt 0:00:12]} 48. Ke4 {[%emt 0:00:06]} Rf1 {[%emt 0:00:10]} 49. Rf3 {[%emt 0:00:04]} Re1+ {[%emt 0:00:01]} 50. Kd5 {[%emt 0:00:09]} Re7 {[%emt 0:00:10]} 51. a6 {[%emt 0:00:04]} Rd7+ {[%emt 0:00:21]} 52. Kc4 {[%emt 0:00:01]} f5 {[%emt 0:00:05]} 53. Rb8 {[%emt 0:00:05]} Kf6 {[%emt 0:00:22]} 54. Rb7 {[%emt 0:00:02]} Ke7 {[%emt 0:00:09]} 55. h4 {[%emt 0:00:07]} Kd8 {[%emt 0:01:01]} 56. h5 {[%emt 0:00:13]} gxh5 {[%emt 0:00:16]} 57. Rxf5 {[%emt 0:00:01]} h4 {[%emt 0:00:04]} 58. Rh5 {[%emt 0:00:15]} Rxb7 {[%emt 0:00:13]} 59. axb7 {[%emt 0:00:01]} Kc7 {[%emt 0:00:00]} 60. f4 {[%emt 0:00:19]} Kxb7 {[%emt 0:00:07]} 61. f5 {[%emt 0:00:03]} a5 {[%emt 0:00:22]} 62. f6 {[%emt 0:00:07]} Bf8 {[%emt 0:00:10]} 63. Rxh4 Kc6 {[%emt 0:00:04]} 64. Kxd4 {[%emt 0:01:53]} Kd6 {[%emt 0:00:08]} 65. Re4 {[%emt 0:00:01]} a4 {[%emt 0:00:09]} 66. Kc4 {[%emt 0:00:21]} a3 {[%emt 0:00:10]} 67. Kb3 {[%emt 0:00:00]} Kd5 {[%emt 0:00:03]} 68. Re8 {[%emt 0:00:05]} Bc5 {[%emt 0:00:18]} 69. f7 {[%emt 0:00:00]} a2 {[%emt 0:00:20]} 70. Kxa2 {[%emt 0:00:03]} h5 {[%emt 0:00:18]} 71. f8=Q {[%emt 0:00:11]} Bxf8 {[%emt 0:00:07]} 72. Rxf8 {[%emt 0:00:01]} Ke5 {[%emt 0:00:02]} 73. Rh8 {[%emt 0:00:00]} Kf5 {[%emt 0:00:04]} 74. Rxh5+ {[%emt 0:00:02]} Kg4 {[%emt 0:00:01]} 75. Rb5 {[%emt 0:00:01]} 1-0